Cogmind - Beta 16 @@@ ROGUE MODE // 2026.02.02 @ 02:45:39 Player: luckinvolved Result: Destroyed by HN-GHL(R) with Subdweller Beam Cannon Performance ------------- Evolutions (0) 0 Regions Visited (2) 400 Robots Destroyed (29) 145 Value Destroyed (560) 560 Prototype IDs (1) 20 Alien Tech Used (0) 0 Bonus (0) 0 TOTAL SCORE: 1125 Bonus ------- None Cogmind --------- Core Integrity 0/250 Matter 250/300 Energy 250/250 System Corruption 0% Temperature Warm (192) Movement Treading (320) Ox2 Location -10/Subcaves Parts ------- > --- POWER (1) -------- Ion Engine > --- PROPULSION (2) --- Light Treads > --- UTILITY (2) ------ High-capacity Storage Unit Gun Armor > --- WEAPON (2+2) ----- Light Assault Rifle Light Cannon > --- INVENTORY (20) --- Light Ion Engine Subdweller Power Source Subdweller Power Source Light Treads Light Treads Disposable Heat Sink Visual Processing Unit Signal Interpreter Signal Interpreter Small Laser Beam Cannon Beam Cannon Beam Cannon Light Assault Rifle Light Assault Rifle Light Assault Rifle Makeshift Shrapnel Gun Mining Laser Flail Peak State ------------ > --- POWER ------------ Ion Engine > --- PROPULSION ------- Light Treads Wheel > --- UTILITY ---------- High-capacity Storage Unit Gun Armor > --- WEAPON ----------- Light Assault Rifle Light Cannon > --- INVENTORY -------- Light Ion Engine Subdweller Power Source Subdweller Power Source Light Treads Light Treads Disposable Heat Sink Visual Processing Unit Signal Interpreter Signal Interpreter Small Laser Beam Cannon Beam Cannon Beam Cannon Light Assault Rifle Light Assault Rifle Light Assault Rifle Makeshift Shrapnel Gun Mining Laser Flail [Rating: 17] Favorites ----------- Power Ion Engine Engine Ion Engine Propulsion Light Treads Treads Light Treads Wheel Wheel Utility Seismic Detector Device Seismic Detector Storage Medium Storage Unit Protection Light Armor Plating Weapon Light Assault Rifle Energy Gun Medium Laser Energy Cannon Beam Cannon Ballistic Gun Light Assault Rifle Ballistic Cannon Light Cannon Impact Weapon Flail Build | -11 -10 -10 ------- Run | Yrd Mat Sub Slots Evolved . | . . . Power . | . . . Propulsion . | . . . Utility . | . . . Weapon . | . . . Parts Attached 19 | 8 5 6 Power 1 | 1 . . Engine 1 | 1 . . Core . | . . . Reactor . | . . . Propulsion 4 | 2 . 2 Treads 3 | 2 . 1 Leg . | . . . Wheel 1 | . . 1 Hover . | . . . Flight . | . . . Utility 7 | 2 3 2 Device 2 | 1 . 1 Storage 3 | 1 2 . Processor . | . . . Hackware . | . . . Protection 2 | . 1 1 Artifact . | . . . Weapon 7 | 3 2 2 Energy Gun 2 | 2 . . Energy Cannon 1 | . . 1 Ballistic Gun 2 | 1 . 1 Ballistic Cannon 1 | . 1 . Launcher . | . . . Special Weapon . | . . . Impact Weapon 1 | . 1 . Slashing Weapon . | . . . Piercing Weapon . | . . . Special Melee Weapon . | . . . Unidentified Prototypes 1 | . . 1 Parts Lost 5 | . 1 4 Power . | . . . Propulsion 3 | . . 3 Utility 2 | . 1 1 Weapon . | . . . Highest Loss Streak 3 | . 1 3 To Critical Strikes . | . . . Average Backups 9 | 1 7 16 Power 1 | . 1 1 Propulsion 1 | . 1 2 Utility 1 | . . 3 Weapon 4 | . 3 9 Tool/Special . | . . . Unused Backups 15 | . . 15 Power 3 | . . 3 Propulsion 2 | . . 2 Utility 4 | . . 4 Weapon 6 | . . 6 Tool/Special . | . . . Average Slot Usage (%) 94 | . 98 85 Engine 13 | . 14 13 Treads 24 | . 28 16 Device 9 | . 10 7 Storage 13 | . 14 13 Protection 3 | . 2 5 Energy Gun 2 | . 4 . Ballistic Gun 12 | . 14 10 Ballistic Cannon 9 | . 7 13 Impact Weapon 1 | . 2 . Peak Build Rating 17 | 7 8 17 Average Rating 7 | 4 7 9 On Entrance 5 | . 7 8 Avg Prop Armor Cover (%) 11 | . . 11 Naked Turns . | . . . Heaviest Build 59 | 14 59 54 Greatest Support 40 | 40 40 40 Greatest Overweight (x) 5 | . 1 5 Average Overweight (x) . | . . 2 Largest Inventory Capacity 20 | 8 20 20 Average Capacity 13 | 7 11 20 Most Carried 19 | 4 17 19 Average Carried 9 | 1 7 16 Final Capacity 20 | 8 20 20 Final Carried 19 | 3 17 19 Class Distribution -------------------- 100% | Mutant Dominant Class ---------------- Mutant | -10/Materials Mutant | -10/Subcaves Resources | -11 -10 -10 ----------- Run | Yrd Mat Sub Matter Collected 616 | 278 231 107 Remotely . | . . . Salvage Created 783 | 112 615 56 Parts 43 | 8 33 2 Haulers Intercepted 2 | . 2 . Recyclers Shooed . | . . . Parts Field Recycled . | . . . Retrieved Matter . | . . . Parts Self-Destructed . | . . . Prevented . | . . . Parts Restored . | . . . Kills | -11 -10 -10 ------- Run | Yrd Mat Sub Combat Hostiles Destroyed 14 | . 12 2 Guns 4 | . 4 . Cannons 10 | . 8 2 Classes Destroyed 11 | 3 6 2 Worker 5 | 1 4 . Builder 2 | . 2 . Tunneler 2 | 2 . . Hauler 2 | . 2 . Recycler 1 | 1 . . Operator 1 | . 1 . Watcher 2 | . 2 . Swarmer 2 | . 2 . Grunt 10 | . 10 . Artisan 1 | . . 1 Subdweller 2 | . . 2 Best Kill Streak 3 | 2 3 2 Combat Bots Only 3 | . 3 2 Max Kills in Single Turn 1 | 1 1 1 Gunslinging . | . . . Exploded . | . . . Melee . | . . . Uniques/NPCs Destroyed . | . . . Combat | -11 -10 -10 -------- Run | Yrd Mat Sub Hostile Shots Fired 80 | . 38 42 Missed 20 | . 10 10 Hits 60 | . 28 32 Projectile 60 | . 28 32 Critical Strikes 2 | . . 2 Damage Taken 1071 | . 288 783 Core 256 | . 39 217 Absorbed by Shields . | . . . Core Remaining (%) 100 | 100 . . Volleys Fired 88 | 8 56 24 Largest 2 | 2 2 2 Hottest 90 | 70 70 90 Shots Fired 175 | 16 111 48 Gun 113 | 16 81 16 Cannon 62 | . 30 32 Launcher . | . . . Special . | . . . Kinetic 134 | 8 86 40 Thermal 41 | 8 25 8 Explosive . | . . . Electromagnetic . | . . . Robot Hit Streak 31 | 6 19 31 Robot Miss Streak 3 | 2 3 2 Penetration Max . | . . . Secondary Targets . | . . . Shots Hit Robots 127 | 11 79 37 Core Hits 45 | 6 31 8 Critical Kills . | . . . Critical Parts Destroyed 2 | . 2 . Critical Strikes 6 | . 4 2 Burn 2 | . 2 . Destroy 1 | . 1 . Blast 2 | . . 2 Smash 1 | . 1 . Melee Attacks 8 | . 8 . Impact 8 | . 8 . Slashing . | . . . Piercing . | . . . Sneak Attacks 5 | . 5 . Combat Hostiles . | . . . Follow-up Attacks . | . . . Damage Inflicted 2128 | 120 1447 561 Guns 656 | 120 462 74 Cannons 971 | . 484 487 Explosions . | . . . Melee 501 | . 501 . Ramming . | . . . Kinetic 1226 | 55 729 442 Thermal 401 | 65 217 119 Explosive . | . . . Electromagnetic . | . . . Impact 501 | . 501 . Slashing . | . . . Piercing . | . . . Highest Corruption . | . . . Average Corruption . | . . . Corruption Purged . | . . . Corruption Blocked . | . . . Overload Shots . | . . . Overflow Damage 324 | . 316 8 Projectiles 8 | . . 8 Explosions . | . . . Melee 316 | . 316 . Knockbacks 14 | . 9 5 Impact 4 | . 4 . Kinetic 9 | . 4 5 Secondary 1 | . 1 . Self-Inflicted Damage . | . . . Shots . | . . . Rammed . | . . . Targets Rammed . | . . . Kicked . | . . . Crushed . | . . . Highest Temperature 244 | 60 126 244 Average Temperature 36 | 25 34 107 Received Heat Transfer 529 | . 126 403 Siege Activations . | . . . Martial Activations . | . . . Shielding Activations . | . . . Robots Disrupted . | . . . Combat Hostiles . | . . . Robots Corrupted 4 | . 4 . Combat Hostiles . | . . . Parts Fried 9 | . 9 . Impact Corruptions 12 | . 12 . Robots Melted . | . . . Combat Hostiles . | . . . Parts Melted 1 | . 1 . Heat Transferred 1221 | 185 777 259 Parts Sabotaged . | . . . Parts Stolen . | . . . Parts Stripped . | . . . Power Chain Reactions . | . . . Alert | -11 -10 -10 ------- Run | Yrd Mat Sub Maximum Alert Level . | . . . Low Security (%) 100 | 100 100 . Level 1 . | . . . Level 2 . | . . . Level 3 . | . . . Level 4 . | . . . Level 5 . | . . . High Security . | . . . Max Security . | . . . Peak Influence 138 | 5 138 . Initial . | . . . Average 29 | . 33 . Influence Increases 412 | 20 392 . Destroy 0b10 Robot/C 240 | . 240 . Destroy 0b10 Robot/NC 75 | 20 55 . Destroy Leader 58 | . 58 . Successful Hack 9 | . 9 . Disable Machine 30 | . 30 . Influence Decreases 412 | 20 302 90 Entered New Map 44 | . . 44 Time Decay 368 | 20 302 46 Squads Dispatched 5 | . 5 . Investigation 3 | . 3 . Extermination . | . . . Reinforcement 2 | . 2 . Assault . | . . . Garrison . | . . . Intercept . | . . . Searches Triggered . | . . . Construction Impeded . | . . . Haulers Reinforced . | . . . Active Scanning Responses . | . . . Cargo Convoy Interrupts . | . . . Stealth | -11 -10 -10 --------- Run | Yrd Mat Sub Distress Signals 2 | . 2 . Communications Jammed . | . . . Distress Signals . | . . . Times Spotted 34 | . 30 4 Peak Tracking Total 4 | . 4 3 Tactical Retreats . | . . . Traps | -11 -10 -10 ------- Run | Yrd Mat Sub Traps Triggered 2 | . 2 . Indirectly . | . . . Trap Hack Attempts . | . . . Triggered . | . . . Disarmed . | . . . Reprogrammed . | . . . Reused . | . . . Traps Extracted . | . . . Installed . | . . . Triggered . | . . . Machines | -11 -10 -10 ---------- Run | Yrd Mat Sub Machines Disabled 2 | . 2 . Max in Single Turn 1 | . 1 . Machines Repaired . | . . . Machines Dismantled . | . . . Machines Sabotaged . | . . . Overloaded Fab Kills . | . . . Hacking | -11 -10 -10 --------- Run | Yrd Mat Sub Machines Accessed 5 | . 4 1 Terminals 3 | . 3 . Fabricators . | . . . Repair Stations . | . . . Recycling Units 1 | . 1 . Scanalyzers . | . . . Garrison Access . | . . . Total Hacks 21 | . 18 3 Successful 14 | . 11 3 Failed 6 | . 6 . Catastrophic 1 | . 1 . Database Lockouts 1 | . 1 . Manual 15 | . 15 . Terminals 16 | . 16 . Fabricators . | . . . Repair Stations . | . . . Recycling Units 2 | . 2 . Scanalyzers . | . . . Garrison Access . | . . . Terminal Hacks 9 | . 6 3 Record 3 | . . 3 Robot Analysis 5 | . 5 . Hauler Manifests 1 | . 1 . Fabricator Hacks . | . . . Repair Station Hacks . | . . . Recycling Unit Hacks 2 | . 2 . Report Inventory 1 | . 1 . Retrieve Components 1 | . 1 . Scanalyzer . | . . . Garrison Access Hacks . | . . . Unauthorized Hacks 3 | . 3 . Terminals 3 | . 3 . Botnet 3 | . 3 . Fabricators . | . . . Repair Stations . | . . . Recycling Units . | . . . Scanalyzers . | . . . Garrison Access . | . . . Data Cores Recovered . | . . . Used . | . . . Hacking Detections 4 | . 4 . Full Trace Events 1 | . 1 . Feedback Events . | . . . Feedback Blocked . | . . . Robot Schematics Acquired . | . . . Robots Built . | . . . Authchips . | . . . Time . | . . . Total Robot Build Rating . | . . . Part Schematics Acquired . | . . . Parts Built . | . . . Authchips . | . . . Time . | . . . Total Part Build Rating . | . . . Part Studies Acquired . | . . . Parts Repaired . | . . . Time . | . . . Parts Recycled . | . . . Recycled Matter . | . . . Retrieved Matter . | . . . Retrieved Components 10 | . 10 . Parts Scanalyzed . | . . . Part Schematics Acquired . | . . . Parts Damaged . | . . . Bothacking | -11 -10 -10 ------------ Run | Yrd Mat Sub Used RIF Installer . | . . . Robots Hacked . | . . . Non-combat . | . . . Combat . | . . . Robot Hacks Applied . | . . . Relay Couplers Released . | . . . Fabnet Peak Effective % . | . . . Robots Rewired . | . . . Allies Hacked . | . . . Hacks Repelled . | . . . Allies | -11 -10 -10 -------- Run | Yrd Mat Sub Total Allies . | . . . Largest Group . | . . . Highest-Rated Group . | . . . Highest-Rated Ally . | . . . Total Orders . | . . . Ally Attacks . | . . . Total Damage . | . . . Kills . | . . . Allies Corrupted . | . . . Allies Melted . | . . . Intel | -11 -10 -10 ------- Run | Yrd Mat Sub Active Infowar (turns) 1446 | 4 1095 347 Seismic 1446 | 4 1095 347 Robot Analysis Total 5 | . 5 . Derelict Logs Recovered . | . . . Drone Launches . | . . . Drone Recoveries . | . . . Exploration | -11 -10 -10 ------------- Run | Yrd Mat Sub Turns Passed 2309 | 193 1475 641 Spaces Moved 1020 | 96 712 212 Core 3 | 3 . . Treads 968 | 93 712 163 Legs . | . . . Wheels 49 | . . 49 Hover . | . . . Flight . | . . . Fastest Speed 50 | 50 160 155 Average Speed 188 | 156 170 263 Slowest Speed 320 | 160 240 320 Overloaded Moves . | . . . Propulsion Burnouts . | . . . Robots Hopped . | . . . Potential Cave-ins . | . . . Cave-ins Triggered . | . . . Exploration Rate (%) 28 | 6 69 10 Regions Visited 2 Branch Regions 1 Pre-discovered Areas 3 | . . 3 Known Exits Taken . | . . . Unknown Exits Taken 2 | 1 1 . Scrap Searched . | . . . Spaces Dug . | . . . Terrain Destroyed . | . . . Melee . | . . . Projectile . | . . . AOE . | . . . Terrain Rammed . | . . . Walls Destroyed . | . . . Machines Disabled . | . . . Actions | -11 -10 -10 --------- Run | Yrd Mat Sub Total 1229 | 121 860 248 Wait 72 | 6 64 2 Move 1018 | 95 711 212 Hop . | . . . Pick Up 22 | 4 14 4 Fast Attach 8 | 6 1 1 Attach 4 | 1 1 2 Detach 1 | . 1 . Swap 7 | 1 3 3 Drop 1 | . 1 . Fire 88 | 8 56 24 Melee 8 | . 8 . Ram . | . . . Kick . | . . . Crush . | . . . Escape Stasis . | . . . Rewire . | . . . Trap . | . . . Miscellaneous . | . . . Route ------- -11/Scrapyard -10/Materials (discovered 4 exits: [*Mat x2] / [*Min] / *Sub) -10/Subcaves History --------- Turn | Location | Event 6 | -11/Scrapyard | Discovered new exit (range 14) 194 | -11/Scrapyard | Entered Materials 306 | -10/Materials | Build established: Mutant 400 | -10/Materials | Discovered new exit (range 8) 1017 | -10/Materials | Discovered new exit (range 6) 1101 | -10/Materials | Central database locked down 1105 | -10/Materials | Discovered new exit (range 14) 1401 | -10/Materials | Discovered new exit (range 6) 1669 | -10/Materials | Entered Subcaves 1670 | -10/Subcaves | Approached by a straggling Scientist 1710 | -10/Subcaves | Learned location of Zion (-6) 1710 | -10/Subcaves | Met a Zionite searching for "candidates" 1779 | -10/Subcaves | A Subdweller sparked back to life 1817 | -10/Subcaves | Core integrity fell below 50% 1837 | -10/Subcaves | Core integrity fell below 20% 1839 | -10/Subcaves | Lost 3 parts (2n1u) 2056 | -10/Subcaves | Visited Clippyterm 2066 | -10/Subcaves | Learned location of Extension (-6) 2066 | -10/Subcaves | Learned location of Section 7 (-3) 2159 | -10/Subcaves | Found Prototype Protection 2159 | -10/Subcaves | Identified Gun Armor 2161 | -10/Subcaves | Attached Gun Armor, gained temporary slots: Weapon x2 2293 | -10/Subcaves | Ambushed by angry Subdweller bent on revenge 2310 | -10/Subcaves | Destroyed by HN-GHL(R) with Subdweller Beam Cannon Last Messages --------------- 02171_ Acquired Sub. Power Source. 02175_ Acquired Disposable Heat Sink. 02182_ Acquired 9 matter. 02185_ Acquired 4 matter. 02192_ Subatomizers dissect the Wheel. 02192_ Acquired Sub. Power Source. 02199_ Acquired 16 matter. 02202_ Acquired 5 matter. 02207_ Subatomizers dissect the Wheel. 02209_ Acquired Wheel. 02260_ DG-OVZ(u) tweaks Twisted Machinery. 02286_ DG-OVZ(u) knocked back. 02289_ Destroyed Multitool. 02292_ DG-OVZ(u) cries out in pain. 02292_ DG-OVZ(u) destroyed. 02293_ HN-GHL(R) angrily emerges from the Twisted Machinery. 02293_ HN-GHL(R): "MADSUB!" 02295_ HN-GHL(R) knocked back. 02306_ Critical hit (Meltdown: +250). 02308_ Wheel destroyed. Map ----- +----------------------------------------------------+ | ?????????????????????????????????????????????? | | ?????????????????????????????????????????????? | | ?????????????????????????????????????????????? | | ?????????????????????????????????????????????? | | ?????????????????????????????????????????????? | | ?????????????????????????????????????????????? | | ?????????????????????????????????????????????? | | ?????????????????????????????????????????????? | | ?????????????????????????????????????????????? | | ?????????????????????????????????????????????? | | ?????????????????????????????????????????????? | | ?????????????????????????????????????????????? | | ?????????????????????????????????????????????? | | ?????????????????????????????????????????????? | | ?????????????????????????????????????????????? | | ?????????????????????????????????????????????? | | ?????????????????????????????????????????????? | | ?????????????????????????????????????????????? | | ?????????????????????????????????????????????? | | ?????????????????###?????????????????????????? | | ?????????????????#""#????????????????????????? | | ?????????????????#""R##??????????????????????? | | ?????????????????#"" ###????????????????????? | | ??????????????????#" % ##??????##???????????? | | ???????????????????# % #????? ????????????? | | ????????????????#### @ #???? ????????????? | | ???????????????#"# ## "##??? #?????????????? | | ???????????????#"" ""#??? #?????????????? | | ???????????????# ""# ##?? #???#?????????? | | ????????????????# "# #?# ## #?????????? | | ???????????????# ## ## #?????????? | | ????????????????# # #?????????? | | ??????????????### ## % ##??????????????? | | ??????????????# ### % #???????????????? | | ???????????????# * #???????????????? | | ???????????????# #?????????????? | | ???????????????# ## #????????????? | | ???????????????# ### ### #????????????? | | ???????????????# ## ##??#####????????????? | | ???????????????# ## #????????????????????? | | ???????????????# ##?????????????? ?????? | | ???????????????# ##??????###?????? ?????? | | ???????????????## #???????# #####?? ##???? | | ????????????????## ##??????# ## #?? #???? | | ?????????????###### #?###### #?? #???? | | ?????????????#"""### ### ## ##?? ##??? | | ?????????????#"" ## ## #?? #??? | | ?????????????#"X # ### # #??? | | ?????????????#"" ## ## ### ##?? | | ?????????????#"""## ## #### ### #?? | +----------------------------------------------------+ Best States ------------- Heat Dissipation 25 Energy Generation 10 Energy Capacity 250 Matter Stores 300 Matter Capacity 300 Sight Range 16 Terrain Scan Density 10 Armor Coverage 150 Evasion (%) 40 Recoil Reduction 2 Item Schematics ----------------- None Robot Schematics ------------------ None Fabricated ------------ Nothing Repaired ---------- Nothing Studied --------- None Alien Tech Used ----------------- None Achievements -------------- None Challenges ------------ None Game ------ Seed PointyTiamatWartreads Manual? 0 Play Time 00:24:44 Cumulative 171.6 hours Start 2026.02.02 @ 02:07:46 End 2026.02.02 @ 02:45:39 Sessions 14 Manual Loads 0 Difficulty Rogue Special Mode None Game No. 202 Rogue 197 Adventurer 5 Explorer 0 Win Type - Total 6 Types 5/0/0/1/0/0/0/0/0/0 Lore% 49 Gallery% 63 Achievement% 51 Wizard Run 0 Options --------- Layout 0 ASCII 0 Keyboard 1 Movement Vi Keybinds 0 Fullscreen 1 Font 24/Terminus Map View 76x50 Zoom Use 8% Tactical HUD 1 Map Filters NONE Filters NONE Steam 1 RUN: 25187a79-52b6-46c6-9bdb-1b24676b12ac